Cogmind - Beta 13 X1 @@@ ROGUE MODE // 2023.08.13 @ 17:06:53 Player: VR-DUX Result: Destroyed by Y-45 Defender with Heavy Assault Rifle Performance ------------- Evolutions (1) 500 Regions Visited (3) 600 Robots Destroyed (87) 435 Value Destroyed (1860) 1860 Prototype IDs (1) 20 Alien Tech Used (0) 0 Bonus (257) 257 TOTAL SCORE: 3672 Bonus ------- High Alert Combat Kills 189 Follower Combat Kills 68 Cogmind --------- Core Integrity 0/400 Matter 269/300 Energy 36/250 System Corruption 0% Temperature Cool (33) Movement Walking (190) Ox1 Location -9/Materials Parts ------- > --- POWER (1) -------- Ion Engine > --- PROPULSION (3) --- Aluminum Leg Aluminum Leg > --- UTILITY (3) ------ Large Storage Unit Structural Scanner Signal Interpreter > --- WEAPON (2) ------- Shock Bomb Launcher > --- INVENTORY (15) --- Ion Engine Light Nuclear Core Light Treads Light Treads VTOL Module Small Storage Unit Medium Storage Unit Large Storage Unit Structural Scanner Improved Propulsion Shielding Improved Propulsion Shielding Improved Propulsion Shielding Light Armor Plating Hacking Suite Peak State ------------ > --- POWER ------------ Light Ion Engine > --- PROPULSION ------- Improved Hover Unit Improved Hover Unit Improved Hover Unit > --- UTILITY ---------- Small Storage Unit Sensor Array Medium Armor Plating > --- WEAPON ----------- Heavy Assault Rifle Light Cannon > --- INVENTORY -------- Small Storage Unit Large Battery Structural Scanner Autogun Light Cannon Light Cannon Grenade Launcher Rocket Launcher [Rating: 15] Favorites ----------- Power Ion Engine Engine Ion Engine Propulsion Light Treads Treads Light Treads Leg Aluminum Leg Hover Unit Improved Hover Unit Flight Unit Flight Unit Utility Structural Scanner Device Structural Scanner Storage Large Storage Unit Processor Signal Interpreter Protection Medium Armor Plating Weapon Improved Assault Rifle Energy Gun EM Pulse Gun Ballistic Gun Improved Assault Rifle Ballistic Cannon Light Cannon Launcher Rocket Launcher Build | -11 -10 -10 -9 ------- Run | Jun Mat Min Mat Slots Evolved 2 | . . . 2 Power . | . . . . Propulsion 1 | . . . 1 Utility 1 | . . . 1 Weapon . | . . . . Parts Attached 78 | 9 24 2 43 Power 14 | 1 8 1 4 Engine 14 | 1 8 1 4 Core . | . . . . Reactor . | . . . . Propulsion 31 | 4 7 . 20 Treads 18 | 2 2 . 14 Leg 8 | 2 3 . 3 Wheel . | . . . . Hover 3 | . . . 3 Flight 2 | . 2 . . Utility 12 | 2 3 1 6 Device 6 | 1 2 1 2 Storage 3 | 1 1 . 1 Processor 1 | . . . 1 Hackware . | . . . . Protection 2 | . . . 2 Artifact . | . . . . Weapon 21 | 2 6 . 13 Energy Gun 4 | 1 2 . 1 Energy Cannon . | . . . . Ballistic Gun 11 | 1 2 . 8 Ballistic Cannon 1 | . 1 . . Launcher 5 | . 1 . 4 Special Weapon . | . . . . Impact Weapon . | . . . . Slashing Weapon . | . . . . Piercing Weapon . | . . . . Special Melee Weapon . | . . . . Unidentified Prototypes 1 | . . . 1 Parts Lost 14 | . 1 . 13 Power 1 | . . . 1 Propulsion 5 | . . . 5 Utility 1 | . . . 1 Weapon 7 | . 1 . 6 Highest Loss Streak 5 | . 1 . 5 To Critical Strikes . | . . . . Average Slot Usage (%) 92 | . 93 85 91 Engine 11 | . 14 14 9 Treads 19 | . 9 . 26 Leg 8 | . 17 28 2 Hover 1 | . . . 3 Device 14 | . 13 14 14 Storage 12 | . 14 14 11 Processor 3 | . . . 5 Energy Gun 3 | . 8 . . Ballistic Gun 11 | . 11 . 11 Ballistic Cannon 1 | . 2 14 . Launcher 3 | . . . 5 Naked Turns . | . . . . Heaviest Build 36 | 15 15 14 36 Greatest Support 60 | 40 40 20 60 Greatest Overweight (x) 4 | 4 4 . 3 Average Overweight (x) . | . . . . Largest Inventory Capacity 15 | 8 8 8 15 Average Capacity 11 | 7 8 8 14 Most Carried 15 | 4 8 8 15 Average Carried 10 | 2 7 7 12 Final Capacity 15 | 8 8 8 15 Final Carried 14 | 4 8 7 14 Class Distribution -------------------- 53% | Scavenger-Mutant 46% | Mutant Dominant Class ---------------- Mutant | -10/Materials Mutant | -10/Mines Scavenger-Mutant | -9/Materials Resources | -11 -10 -10 -9 ----------- Run | Jun Mat Min Mat Matter Collected 2008 | 326 491 30 1161 Remotely . | . . . . Salvage Created 2961 | 92 746 12 2111 Parts 198 | 7 50 2 139 Haulers Intercepted 7 | . 2 . 5 Recyclers Shooed 6 | . 2 . 4 Parts Field Recycled . | . . . . Retrieved Matter . | . . . . Parts Self-Destructed . | . . . . Prevented . | . . . . Kills | -11 -10 -10 -9 ------- Run | Jun Mat Min Mat Combat Hostiles Destroyed 50 | . 14 2 34 Guns 34 | . 9 . 25 Cannons 4 | . 2 2 . AOE 12 | . 3 . 9 Classes Destroyed 12 | 2 6 . 4 Worker 6 | . 2 . 4 Builder 3 | . . . 3 Tunneler 2 | 2 . . . Hauler 7 | . 2 . 5 Recycler 8 | 1 2 . 5 Operator 3 | . 1 . 2 Watcher 8 | . 3 . 5 Swarmer 11 | . 5 2 4 Grunt 31 | . 9 . 22 Brawler 2 | . . . 2 Duelist 1 | . . . 1 Sentry 5 | . . . 5 Best Kill Streak 6 | 2 4 2 6 Combat Bots Only 4 | . 3 2 4 Max Kills in Single Turn 4 | 1 3 1 4 Gunslinging . | . . . . Exploded 3 | . 3 . 3 Melee . | . . . . Uniques/NPCs Destroyed . | . . . . Combat | -11 -10 -10 -9 -------- Run | Jun Mat Min Mat Damage Taken 2842 | . 494 40 2308 Core 508 | . 91 8 409 Absorbed by Shields . | . . . . Regen/Repaired (Parts) 284 | . . . 284 Core Remaining (%) 80 | 100 . 60 . Volleys Fired 324 | 12 80 5 227 Largest 2 | 2 2 1 2 Hottest 70 | 60 70 35 68 Shots Fired 363 | 16 101 5 241 Gun 322 | 16 87 . 219 Cannon 22 | . 13 5 4 Launcher 19 | . 1 . 18 Special . | . . . . Kinetic 307 | 12 79 5 211 Thermal 15 | . 15 . . Explosive 14 | . 1 . 13 Electromagnetic 27 | 4 6 . 17 Robot Hit Streak 13 | 6 13 1 12 Robot Miss Streak 4 | 3 2 4 4 Penetration Max . | . . . . Secondary Targets 2 | . . . 2 Max Gunslinging Chain 1 | . . . 1 Shots Hit Robots 244 | 11 66 1 166 Core Hits 122 | 4 29 2 87 Critical Kills 1 | . 1 . . Critical Parts Destroyed 1 | . . . 1 Critical Strikes 4 | . 2 1 1 Destroy 2 | . 1 . 1 Blast 1 | . . 1 . Corrupt 1 | . 1 . . Melee Attacks . | . . . . Impact . | . . . . Slashing . | . . . . Piercing . | . . . . Sneak Attacks . | . . . . Combat Hostiles . | . . . . Follow-up Attacks . | . . . . Damage Inflicted 4755 | 135 1040 39 3541 Guns 3464 | 135 789 . 2540 Cannons 228 | . 153 39 36 Explosions 1058 | . 93 . 965 Melee . | . . . . Ramming 5 | . 5 . . Kinetic 3276 | 98 695 39 2444 Thermal 143 | . 143 . . Explosive 961 | . 93 . 868 Electromagnetic 370 | 37 104 . 229 Impact . | . . . . Slashing . | . . . . Piercing . | . . . . Highest Corruption . | . . . . Average Corruption . | . . . . Corruption Purged . | . . . . Corruption Blocked . | . . . . Overload Shots . | . . . . Overflow Damage 87 | . . . 87 Projectiles . | . . . . Explosions 87 | . . . 87 Melee . | . . . . Knockbacks . | . . . . Impact . | . . . . Kinetic . | . . . . Secondary . | . . . . Self-Inflicted Damage 190 | . . . 190 Shots 5 | . . . 5 Rammed . | . . . . Targets Rammed 1 | . 1 . . Kicked 1 | . 1 . . Crushed . | . . . . Highest Temperature 45 | . 45 . 17 Average Temperature 11 | . 16 . 6 Received Heat Transfer 1149 | . 219 . 930 Siege Activations . | . . . . Robots Corrupted . | . . . . Combat Hostiles . | . . . . Parts Fried . | . . . . Impact Corruptions . | . . . . Robots Melted . | . . . . Combat Hostiles . | . . . . Parts Melted . | . . . . Heat Transferred 360 | . 360 . . Parts Sabotaged . | . . . . Parts Stolen . | . . . . Parts Stripped . | . . . . Power Chain Reactions . | . . . . Missiles Intercepted . | . . . . Alert | -11 -10 -10 -9 ------- Run | Jun Mat Min Mat Peak Influence 740 | 15 180 132 740 Initial 51 | . 9 8 51 Average 279 | 6 62 110 423 Maximum Alert Level 3 | . . . 3 Low Security (%) 43 | 100 100 100 5 Level 1 27 | . . . 45 Level 2 23 | . . . 39 Level 3 5 | . . . 9 Level 4 . | . . . . Level 5 . | . . . . High Security . | . . . . Max Security . | . . . . Squads Dispatched 10 | . 3 . 7 Investigation 6 | . 2 . 4 Extermination . | . . . . Reinforcement 3 | . 1 . 2 Assault 1 | . . . 1 Garrison . | . . . . Intercept . | . . . . Searches Triggered . | . . . . Construction Impeded . | . . . . Haulers Reinforced . | . . . . Active Scanning Responses . | . . . . Cargo Convoy Interrupts . | . . . . Stealth | -11 -10 -10 -9 --------- Run | Jun Mat Min Mat Distress Signals 4 | . . . 4 Communications Jammed . | . . . . Distress Signals . | . . . . Times Spotted 94 | . 29 6 59 Peak Tracking Total 8 | . 5 3 8 Tactical Retreats 6 | . 1 . 5 Traps | -11 -10 -10 -9 ------- Run | Jun Mat Min Mat Traps Triggered 5 | . 2 . 3 Indirectly . | . . . . Trap Hack Attempts . | . . . . Triggered . | . . . . Disarmed . | . . . . Reprogrammed . | . . . . Reused . | . . . . Traps Extracted . | . . . . Installed . | . . . . Triggered . | . . . . Machines | -11 -10 -10 -9 ---------- Run | Jun Mat Min Mat Machines Disabled 4 | . . . 4 Max in Single Turn 2 | . . . 2 Machines Repaired . | . . . . Machines Sabotaged . | . . . . Overloaded Fab Kills . | . . . . Hacking | -11 -10 -10 -9 --------- Run | Jun Mat Min Mat Machines Accessed 14 | . 6 . 8 Terminals 8 | . 4 . 4 Fabricators . | . . . . Repair Stations 2 | . . . 2 Recycling Units 4 | . 2 . 2 Scanalyzers . | . . . . Garrison Access . | . . . . Total Hacks 45 | . 15 . 30 Successful 25 | . 7 . 18 Failed 19 | . 7 . 12 Catastrophic 3 | . 1 . 2 Database Lockouts 1 | . 1 . . Manual 23 | . 11 . 12 Terminals 20 | . 10 . 10 Fabricators . | . . . . Repair Stations 15 | . . . 15 Recycling Units 10 | . 5 . 5 Scanalyzers . | . . . . Garrison Access . | . . . . Terminal Hacks 8 | . 5 . 3 Robot Analysis 4 | . 3 . 1 Branch Access Points 2 | . 1 . 1 Zone Layout 2 | . 1 . 1 Fabricator Hacks . | . . . . Repair Station Hacks 13 | . . . 13 Scan Component 8 | . . . 8 Repair 5 | . . . 5 Recycling Unit Hacks 4 | . 2 . 2 Retrieve Components 4 | . 2 . 2 Scanalyzer . | . . . . Garrison Access Hacks . | . . . . Unauthorized Hacks . | . . . . Terminals . | . . . . Fabricators . | . . . . Repair Stations . | . . . . Recycling Units . | . . . . Scanalyzers . | . . . . Garrison Access . | . . . . Data Cores Recovered . | . . . . Used . | . . . . Hacking Detections 11 | . 5 . 6 Full Trace Events 4 | . . . 4 Feedback Events . | . . . . Feedback Blocked . | . . . . Robot Schematics Acquired . | . . . . Robots Built . | . . . . Authchips . | . . . . Time . | . . . . Total Robot Build Rating . | . . . . Part Schematics Acquired . | . . . . Parts Built . | . . . . Authchips . | . . . . Time . | . . . . Total Part Build Rating . | . . . . Parts Repaired 5 | . . . 5 Time 155 | . . . 155 Parts Recycled . | . . . . Recycled Matter . | . . . . Retrieved Matter . | . . . . Retrieved Components 28 | . 9 . 19 Parts Scanalyzed . | . . . . Part Schematics Acquired . | . . . . Parts Damaged . | . . . . Bothacking | -11 -10 -10 -9 ------------ Run | Jun Mat Min Mat Used RIF Installer . | . . . . Robots Hacked . | . . . . Non-combat . | . . . . Combat . | . . . . Robot Hacks Applied . | . . . . Relay Couplers Released . | . . . . Fabnet Peak Effective % . | . . . . Robots Rewired . | . . . . Allies Hacked . | . . . . Hacks Repelled . | . . . . Allies | -11 -10 -10 -9 -------- Run | Jun Mat Min Mat Total Allies 1 | . . 1 . Largest Group 1 | . . 1 1 Highest-Rated Group 31 | . . 31 31 Highest-Rated Ally 31 | . . 31 31 Total Orders . | . . . . Ally Attacks 18 | . . 4 14 Total Damage 236 | . . 64 172 Kills 6 | . . 3 3 Allies Corrupted . | . . . . Allies Melted . | . . . . Intel | -11 -10 -10 -9 ------- Run | Jun Mat Min Mat Robot Analysis Total 4 | . 3 . 1 Derelict Logs Recovered 1 | . . 1 . Drone Launches . | . . . . Drone Recoveries . | . . . . Exploration | -11 -10 -10 -9 ------------- Run | Jun Mat Min Mat Turns Passed 4760 | 142 1621 140 2857 Spaces Moved 2450 | 56 947 101 1346 Core 12 | 6 1 . 5 Treads 1376 | 21 308 . 1047 Legs 879 | 29 636 101 113 Wheels . | . . . . Hover 181 | . . . 181 Flight 2 | . 2 . . Fastest Speed 50 | 50 117 120 52 Average Speed 145 | 174 142 120 148 Slowest Speed 280 | 250 280 120 200 Overloaded Moves . | . . . . Propulsion Burnouts . | . . . . Robots Hopped . | . . . . Cave-ins Triggered . | . . . . Exploration Rate (%) 52 | 5 99 25 82 Regions Visited 3 Branch Regions 1 Pre-discovered Areas 1 | . . 1 . Known Exits Taken 1 | . 1 . . Unknown Exits Taken 2 | 1 . 1 . Scrap Searched . | . . . . Spaces Dug . | . . . . Terrain Destroyed 111 | . 8 . 103 Melee . | . . . . Projectile . | . . . . AOE 111 | . 8 . 103 Terrain Rammed . | . . . . Walls Destroyed . | . . . . Machines Disabled . | . . . . Actions | -11 -10 -10 -9 --------- Run | Jun Mat Min Mat Total 3282 | 81 1123 115 1963 Wait 330 | . 29 6 295 Move 2447 | 55 946 100 1346 Hop . | . . . . Pick Up 47 | 4 17 . 26 Fast Attach 36 | 7 8 1 20 Attach 18 | 1 5 . 12 Detach 3 | 1 . . 2 Swap 24 | 1 11 1 11 Drop 52 | . 26 2 24 Fire 324 | 12 80 5 227 Melee . | . . . . Ram . | . . . . Kick 1 | . 1 . . Crush . | . . . . Escape Stasis . | . . . . Rewire . | . . . . Trap . | . . . . Miscellaneous . | . . . . Route ------- -11/Junkyard -10/Materials (discovered 6 exits: *Mat x3 / *Min x2 / [*Sub]) -10/Mines -9/Materials (discovered 5 exits: [*Mat x2] / *Min / *Sto x2) History --------- Turn | Location | Event 13 | -11/Junkyard | Discovered new exit (range 15) 143 | -11/Junkyard | Entered Materials 310 | -10/Materials | Build established: Mutant 311 | -10/Materials | Discovered new exit (range 11) 516 | -10/Materials | Identified exit to Mines 516 | -10/Materials | Central database locked down 570 | -10/Materials | Discovered new exit (range 16) 860 | -10/Materials | Discovered new exit (range 7) 1455 | -10/Materials | Discovered new exit (range 10) 1678 | -10/Materials | Discovered new exit (range 7) 1764 | -10/Materials | Entered Mines 1773 | -10/Mines | Escorted by a lone wolf Derelict 1793 | -10/Mines | Learned location of Storage (-9) 1849 | -10/Mines | Assembled infested the area 1889 | -10/Mines | Discovered new exit (range 13) 1904 | -10/Mines | Entered Materials 1904 | -9/Materials | Accompanied by 1 ally 1904 | -9/Materials | Evolved 2 slots: Propulsion x1, Utility x1 1905 | -9/Materials | Identified exit to Storage 2233 | -9/Materials | Lost 5 parts (1p3n1u) 2453 | -9/Materials | Discovered new exit (range 10) 2534 | -9/Materials | Build established: Scavenger-Mutant 2555 | -9/Materials | Discovered new exit (range 15) 2717 | -9/Materials | Repaired Imp. Assault Rifle 2750 | -9/Materials | Repaired Lgt. Treads 3301 | -9/Materials | Discovered new exit (range 13) 3382 | -9/Materials | Repaired Lgt. Treads 3409 | -9/Materials | Repaired Lgt. Treads 3437 | -9/Materials | Repaired Lgt. Treads? 3454 | -9/Materials | Core integrity fell below 50% 4176 | -9/Materials | Identified exit to Mines 4304 | -9/Materials | First assault squad dispatched 4472 | -9/Materials | Core integrity fell below 20% 4508 | -9/Materials | Lost 3 parts (1n2w) 4761 | -9/Materials | Destroyed by Y-45 Defender with Heavy Assault Rifle Last Messages --------------- Rating: 2p Time: 51 04596_ ALERT: Suspicious activity at Repair Station M001. Dispatching Investigation squad. 04600_ K-01 Serf cleans the Fusion Modulator. 04644_ A-02 Transporter destroyed. 04647_ K-01 Serf collects debris. 04653_ Acquired 2 matter. 04655_ Acquired 13 matter. 04656_ K-01 Serf collects debris. 04674_ R-06 Scavenger collects Prototype Energy Gun. 04708_ W-16 Scout destroyed. 04710_ K-01 Serf collects debris. 04719_ R-06 Scavenger collects Signal Interpreter. 04739_ Imp. Assault Rifle destroyed. 04751_ Lgt. Treads destroyed. 04751_ Destroyed Lgt. Treads. 04751_ Door malfunctions. 04757_ Y-45 Defender misfires. 04761_ Critical hit (Burn: +37). Map ----- +----------------------------------------------------+ | ?????????????????????????"# ## """ ## ##?? | | ????????????????????????? # ## ## ##?? | | ????????????????????????? # ########## % =##?? | | ????????????????????????? # ########## % %#### | | ????????????????????????? # ##??????##% #+#### | | ????????????????????????? #######??###### # | | ????????????????????????? #######??###### # | | ???????????????????????????????## ? # # [! | | ???????????????????????????????## # #% ! | | ???????????????????????? ##???## +^^^+ | | ????????????????????????####???###??#####^ # | | ???????????????????????? ????????##### ###### | | ????????????????????????? ????## ???? # ##### | | ????????????????????????? ????## # ##### | | ?????????????????????????! ????## + % | | ????????????????????## ??## !# ##### | | ????????????????????#####;###??## ! # ## | | ???????????????????? ?? + ! ### #### ?? | | ????????????????????## ##???########### #### ?? | | ???????# ####???##Y ############??## #### "" | | ??????####+######???## ##########????## #### "" | | ??????### "T" #### ## ##????## ??## "" | | ??????## #### ## + ???? #?## "" | | ??????### # # """" ##????####?## "" | | ???????## !! """ Y ; """" ##????####?## | | ?????????? !! """ # @ # ?""" ##?########## | | ???????????!! ""? ### # ############# | | ??????????? ??? ### ####+####### ##+# | | ???????????????????## | | ???????????????????## > | | ???????????????????## | | ??????####?????????## %####### ##+# | | ??????####?????????##u !! %# # "!"!" ## % | | ??>??? + #### !% + ??? #""!"!""## | | ??????##+############a## # ??? ########## | | ??????## ## # # ########## | | ??????## ## # #######????## ## | | ??????## ## # #######????### # | | ??????##""*=!## # ##?######## | | ########"Y !*## + ##?##### ## | | ########""!!!## # ]| # ## | | # # %[=##! ! # | # ? """ ##"" | | # ! ##+##### # # "?""" ##"" | | # + + # # "???? ##"" | | + """ ## ########### + """???## | | # """ ## ########### # ""???#### | | # """ ## ##?######### # ???????#### | | ######### ##?## # """ """ # ??????????? | | ######### ##?## + """ """ # ??????????? | | #??????## ##?## # """ """ ##??????????? | +----------------------------------------------------+ Best States ------------- Heat Dissipation 28 Energy Generation 10 Energy Capacity 250 Matter Stores 300 Matter Capacity 300 Sight Range 16 Robot Scan Range 14 Terrain Scan Density 10 Armor Coverage 225 Evasion (%) 55 Recoil Reduction 3 Item Schematics ----------------- None Robot Schematics ------------------ None Fabricated ------------ Nothing Alien Tech Used ----------------- None Achievements -------------- None Challenges ------------ None Game ------ Seed TiamatContainmentWings Manual? 0 Play Time 00:59:28 Cumulative 55.0 hours Start 2023.08.13 @ 16:07:47 End 2023.08.13 @ 17:06:53 Sessions 1 Manual Loads 0 Difficulty Rogue Special Mode None Game No. 30 Rogue 30 Adventurer 0 Explorer 0 Win Type - Total 0 Types 0/0/0/0/0/0/0/0/0 Lore% 30 Gallery% 27 Achievement% 32 Wizard Run 0 Options --------- ASCII 0 Keyboard 0 Movement Mouse Keybinds 0 Fullscreen 1 Font 16/SmallcapsGlow Map View 82x54 Tactical HUD 1 Map Filters NONE Filters NONE Steam 1 RUN: 2aa48734-523b-4535-b00c-c10590327cd0